Workbook

Sheet Cover
B4: Die Welt der VBA-Objekte
B5: 3. Auflage
B8: Kapitel | C8: Excel Objekte
C9: Excel Blätter
B12: Inhalt | C12: Tabellen-Objekte
C13: Strukturierte Verweise
C14: Beziehungen
B16: Version | C16: 1.0
B17: Autor | C17: Harald Nahrstedt
B18: Datum | C18: 2025-03-01
B21: Springer Vieweg Verlag

Sheet Produkte
A1: Produkt | B1: Bauteil | C1: Anzahl | D1: Std | E1: Schnitt | F1: Satz | G1: Kosten
A2: A | B2: 1 | C2: 7 | D2: 3.5 | E2: =Fertigung[[#This Row],[Std]] / Fertigung[[#This Row],[Anzahl]] -> 0.5 | F2: =VLOOKUP(Fertigung[[#This Row],[Produkt]],Kosten[],2) -> 54.3 | G2: =Fertigung[[#This Row],[Satz]]*Fertigung[[#This Row],[Std]] -> 190.05
A3: A | B3: 2 | C3: 1 | D3: 4.3 | E3: =Fertigung[[#This Row],[Std]] / Fertigung[[#This Row],[Anzahl]] -> 4.3 | F3: =VLOOKUP(Fertigung[[#This Row],[Produkt]],Kosten[],2) -> 54.3 | G3: =Fertigung[[#This Row],[Satz]]*Fertigung[[#This Row],[Std]] -> 233.49
A4: A | B4: 1 | C4: 4 | D4: 2.5 | E4: =Fertigung[[#This Row],[Std]] / Fertigung[[#This Row],[Anzahl]] -> 0.625 | F4: =VLOOKUP(Fertigung[[#This Row],[Produkt]],Kosten[],2) -> 54.3 | G4: =Fertigung[[#This Row],[Satz]]*Fertigung[[#This Row],[Std]] -> 135.75
A5: A | B5: 3 | C5: 2 | D5: 4.4 | E5: =Fertigung[[#This Row],[Std]] / Fertigung[[#This Row],[Anzahl]] -> 2.2 | F5: =VLOOKUP(Fertigung[[#This Row],[Produkt]],Kosten[],2) -> 54.3 | G5: =Fertigung[[#This Row],[Satz]]*Fertigung[[#This Row],[Std]] -> 238.92
A6: A | B6: 4 | C6: 1 | D6: 6.9 | E6: =Fertigung[[#This Row],[Std]] / Fertigung[[#This Row],[Anzahl]] -> 6.9 | F6: =VLOOKUP(Fertigung[[#This Row],[Produkt]],Kosten[],2) -> 54.3 | G6: =Fertigung[[#This Row],[Satz]]*Fertigung[[#This Row],[Std]] -> 374.67
A7: A | B7: 5 | C7: 17 | D7: 9.5 | E7: =Fertigung[[#This Row],[Std]] / Fertigung[[#This Row],[Anzahl]] -> 0.5588235294 | F7: =VLOOKUP(Fertigung[[#This Row],[Produkt]],Kosten[],2) -> 54.3 | G7: =Fertigung[[#This Row],[Satz]]*Fertigung[[#This Row],[Std]] -> 515.85
A8: A | B8: 6 | C8: 1 | D8: 7.5 | E8: =Fertigung[[#This Row],[Std]] / Fertigung[[#This Row],[Anzahl]] -> 7.5 | F8: =VLOOKUP(Fertigung[[#This Row],[Produkt]],Kosten[],2) -> 54.3 | G8: =Fertigung[[#This Row],[Satz]]*Fertigung[[#This Row],[Std]] -> 407.25
A9: A | B9: 7 | C9: 7 | D9: 4.8 | E9: =Fertigung[[#This Row],[Std]] / Fertigung[[#This Row],[Anzahl]] -> 0.6857142857 | F9: =VLOOKUP(Fertigung[[#This Row],[Produkt]],Kosten[],2) -> 54.3 | G9: =Fertigung[[#This Row],[Satz]]*Fertigung[[#This Row],[Std]] -> 260.64
A10: A | B10: 8 | C10: 19 | D10: 1.4 | E10: =Fertigung[[#This Row],[Std]] / Fertigung[[#This Row],[Anzahl]] -> 0.07368421053 | F10: =VLOOKUP(Fertigung[[#This Row],[Produkt]],Kosten[],2) -> 54.3 | G10: =Fertigung[[#This Row],[Satz]]*Fertigung[[#This Row],[Std]] -> 76.02
A11: A | B11: 9 | C11: 14 | D11: 2.8 | E11: =Fertigung[[#This Row],[Std]] / Fertigung[[#This Row],[Anzahl]] -> 0.2 | F11: =VLOOKUP(Fertigung[[#This Row],[Produkt]],Kosten[],2) -> 54.3 | G11: =Fertigung[[#This Row],[Satz]]*Fertigung[[#This Row],[Std]] -> 152.04
A12: A | B12: 10 | C12: 2 | D12: 10.6 | E12: =Fertigung[[#This Row],[Std]] / Fertigung[[#This Row],[Anzahl]] -> 5.3 | F12: =VLOOKUP(Fertigung[[#This Row],[Produkt]],Kosten[],2) -> 54.3 | G12: =Fertigung[[#This Row],[Satz]]*Fertigung[[#This Row],[Std]] -> 575.58
A13: A | B13: 11 | C13: 3 | D13: 5.9 | E13: =Fertigung[[#This Row],[Std]] / Fertigung[[#This Row],[Anzahl]] -> 1.966666667 | F13: =VLOOKUP(Fertigung[[#This Row],[Produkt]],Kosten[],2) -> 54.3 | G13: =Fertigung[[#This Row],[Satz]]*Fertigung[[#This Row],[Std]] -> 320.37
A14: A | B14: 12 | C14: 17 | D14: 18.7 | E14: =Fertigung[[#This Row],[Std]] / Fertigung[[#This Row],[Anzahl]] -> 1.1 | F14: =VLOOKUP(Fertigung[[#This Row],[Produkt]],Kosten[],2) -> 54.3 | G14: =Fertigung[[#This Row],[Satz]]*Fertigung[[#This Row],[Std]] -> 1015.41
A15: A | B15: 13 | C15: 1 | D15: 10.5 | E15: =Fertigung[[#This Row],[Std]] / Fertigung[[#This Row],[Anzahl]] -> 10.5 | F15: =VLOOKUP(Fertigung[[#This Row],[Produkt]],Kosten[],2) -> 54.3 | G15: =Fertigung[[#This Row],[Satz]]*Fertigung[[#This Row],[Std]] -> 570.15
A16: A | B16: 14 | C16: 2 | D16: 17.9 | E16: =Fertigung[[#This Row],[Std]] / Fertigung[[#This Row],[Anzahl]] -> 8.95 | F16: =VLOOKUP(Fertigung[[#This Row],[Produkt]],Kosten[],2) -> 54.3 | G16: =Fertigung[[#This Row],[Satz]]*Fertigung[[#This Row],[Std]] -> 971.97
A17: A | B17: 15 | C17: 9 | D17: 3.8 | E17: =Fertigung[[#This Row],[Std]] / Fertigung[[#This Row],[Anzahl]] -> 0.4222222222 | F17: =VLOOKUP(Fertigung[[#This Row],[Produkt]],Kosten[],2) -> 54.3 | G17: =Fertigung[[#This Row],[Satz]]*Fertigung[[#This Row],[Std]] -> 206.34
A18: B | B18: 1 | C18: 17 | D18: 2.4 | E18: =Fertigung[[#This Row],[Std]] / Fertigung[[#This Row],[Anzahl]] -> 0.1411764706 | F18: =VLOOKUP(Fertigung[[#This Row],[Produkt]],Kosten[],2) -> 60.2 | G18: =Fertigung[[#This Row],[Satz]]*Fertigung[[#This Row],[Std]] -> 144.48
A19: B | B19: 2 | C19: 19 | D19: 6.7 | E19: =Fertigung[[#This Row],[Std]] / Fertigung[[#This Row],[Anzahl]] -> 0.3526315789 | F19: =VLOOKUP(Fertigung[[#This Row],[Produkt]],Kosten[],2) -> 60.2 | G19: =Fertigung[[#This Row],[Satz]]*Fertigung[[#This Row],[Std]] -> 403.34
A20: B | B20: 3 | C20: 1 | D20: 10.6 | E20: =Fertigung[[#This Row],[Std]] / Fertigung[[#This Row],[Anzahl]] -> 10.6 | F20: =VLOOKUP(Fertigung[[#This Row],[Produkt]],Kosten[],2) -> 60.2 | G20: =Fertigung[[#This Row],[Satz]]*Fertigung[[#This Row],[Std]] -> 638.12
A21: B | B21: 4 | C21: 8 | D21: 4.8 | E21: =Fertigung[[#This Row],[Std]] / Fertigung[[#This Row],[Anzahl]] -> 0.6 | F21: =VLOOKUP(Fertigung[[#This Row],[Produkt]],Kosten[],2) -> 60.2 | G21: =Fertigung[[#This Row],[Satz]]*Fertigung[[#This Row],[Std]] -> 288.96
A22: B | B22: 5 | C22: 14 | D22: 2.2 | E22: =Fertigung[[#This Row],[Std]] / Fertigung[[#This Row],[Anzahl]] -> 0.1571428571 | F22: =VLOOKUP(Fertigung[[#This Row],[Produkt]],Kosten[],2) -> 60.2 | G22: =Fertigung[[#This Row],[Satz]]*Fertigung[[#This Row],[Std]] -> 132.44
A23: B | B23: 6 | C23: 14 | D23: 10.1 | E23: =Fertigung[[#This Row],[Std]] / Fertigung[[#This Row],[Anzahl]] -> 0.7214285714 | F23: =VLOOKUP(Fertigung[[#This Row],[Produkt]],Kosten[],2) -> 60.2 | G23: =Fertigung[[#This Row],[Satz]]*Fertigung[[#This Row],[Std]] -> 608.02
A24: B | B24: 7 | C24: 15 | D24: 1.4 | E24: =Fertigung[[#This Row],[Std]] / Fertigung[[#This Row],[Anzahl]] -> 0.09333333333 | F24: =VLOOKUP(Fertigung[[#This Row],[Produkt]],Kosten[],2) -> 60.2 | G24: =Fertigung[[#This Row],[Satz]]*Fertigung[[#This Row],[Std]] -> 84.28
A25: C | B25: 1 | C25: 2 | D25: 2.2 | E25: =Fertigung[[#This Row],[Std]] / Fertigung[[#This Row],[Anzahl]] -> 1.1 | F25: =VLOOKUP(Fertigung[[#This Row],[Produkt]],Kosten[],2) -> 48.9 | G25: =Fertigung[[#This Row],[Satz]]*Fertigung[[#This Row],[Std]] -> 107.58
A26: C | B26: 2 | C26: 9 | D26: 19.8 | E26: =Fertigung[[#This Row],[Std]] / Fertigung[[#This Row],[Anzahl]] -> 2.2 | F26: =VLOOKUP(Fertigung[[#This Row],[Produkt]],Kosten[],2) -> 48.9 | G26: =Fertigung[[#This Row],[Satz]]*Fertigung[[#This Row],[Std]] -> 968.22
A27: C | B27: 3 | C27: 14 | D27: 7.8 | E27: =Fertigung[[#This Row],[Std]] / Fertigung[[#This Row],[Anzahl]] -> 0.5571428571 | F27: =VLOOKUP(Fertigung[[#This Row],[Produkt]],Kosten[],2) -> 48.9 | G27: =Fertigung[[#This Row],[Satz]]*Fertigung[[#This Row],[Std]] -> 381.42
A28: C | B28: 4 | C28: 8 | D28: 14.7 | E28: =Fertigung[[#This Row],[Std]] / Fertigung[[#This Row],[Anzahl]] -> 1.8375 | F28: =VLOOKUP(Fertigung[[#This Row],[Produkt]],Kosten[],2) -> 48.9 | G28: =Fertigung[[#This Row],[Satz]]*Fertigung[[#This Row],[Std]] -> 718.83
A29: C | B29: 5 | C29: 7 | D29: 6.9 | E29: =Fertigung[[#This Row],[Std]] / Fertigung[[#This Row],[Anzahl]] -> 0.9857142857 | F29: =VLOOKUP(Fertigung[[#This Row],[Produkt]],Kosten[],2) -> 48.9 | G29: =Fertigung[[#This Row],[Satz]]*Fertigung[[#This Row],[Std]] -> 337.41
A30: C | B30: 6 | C30: 18 | D30: 6.7 | E30: =Fertigung[[#This Row],[Std]] / Fertigung[[#This Row],[Anzahl]] -> 0.3722222222 | F30: =VLOOKUP(Fertigung[[#This Row],[Produkt]],Kosten[],2) -> 48.9 | G30: =Fertigung[[#This Row],[Satz]]*Fertigung[[#This Row],[Std]] -> 327.63
A31: C | B31: 7 | C31: 1 | D31: 11.3 | E31: =Fertigung[[#This Row],[Std]] / Fertigung[[#This Row],[Anzahl]] -> 11.3 | F31: =VLOOKUP(Fertigung[[#This Row],[Produkt]],Kosten[],2) -> 48.9 | G31: =Fertigung[[#This Row],[Satz]]*Fertigung[[#This Row],[Std]] -> 552.57
A32: C | B32: 8 | C32: 13 | D32: 11.3 | E32: =Fertigung[[#This Row],[Std]] / Fertigung[[#This Row],[Anzahl]] -> 0.8692307692 | F32: =VLOOKUP(Fertigung[[#This Row],[Produkt]],Kosten[],2) -> 48.9 | G32: =Fertigung[[#This Row],[Satz]]*Fertigung[[#This Row],[Std]] -> 552.57
A33: C | B33: 9 | C33: 8 | D33: 4.7 | E33: =Fertigung[[#This Row],[Std]] / Fertigung[[#This Row],[Anzahl]] -> 0.5875 | F33: =VLOOKUP(Fertigung[[#This Row],[Produkt]],Kosten[],2) -> 48.9 | G33: =Fertigung[[#This Row],[Satz]]*Fertigung[[#This Row],[Std]] -> 229.83
A34: C | B34: 10 | C34: 4 | D34: 11.9 | E34: =Fertigung[[#This Row],[Std]] / Fertigung[[#This Row],[Anzahl]] -> 2.975 | F34: =VLOOKUP(Fertigung[[#This Row],[Produkt]],Kosten[],2) -> 48.9 | G34: =Fertigung[[#This Row],[Satz]]*Fertigung[[#This Row],[Std]] -> 581.91
A35: C | B35: 11 | C35: 6 | D35: 2.6 | E35: =Fertigung[[#This Row],[Std]] / Fertigung[[#This Row],[Anzahl]] -> 0.4333333333 | F35: =VLOOKUP(Fertigung[[#This Row],[Produkt]],Kosten[],2) -> 48.9 | G35: =Fertigung[[#This Row],[Satz]]*Fertigung[[#This Row],[Std]] -> 127.14
A36: D | B36: 1 | C36: 1 | D36: 4.8 | E36: =Fertigung[[#This Row],[Std]] / Fertigung[[#This Row],[Anzahl]] -> 4.8 | F36: =VLOOKUP(Fertigung[[#This Row],[Produkt]],Kosten[],2) -> 33.7 | G36: =Fertigung[[#This Row],[Satz]]*Fertigung[[#This Row],[Std]] -> 161.76
A37: D | B37: 2 | C37: 2 | D37: 5 | E37: =Fertigung[[#This Row],[Std]] / Fertigung[[#This Row],[Anzahl]] -> 2.5 | F37: =VLOOKUP(Fertigung[[#This Row],[Produkt]],Kosten[],2) -> 33.7 | G37: =Fertigung[[#This Row],[Satz]]*Fertigung[[#This Row],[Std]] -> 168.5
A38: D | B38: 3 | C38: 1 | D38: 18.2 | E38: =Fertigung[[#This Row],[Std]] / Fertigung[[#This Row],[Anzahl]] -> 18.2 | F38: =VLOOKUP(Fertigung[[#This Row],[Produkt]],Kosten[],2) -> 33.7 | G38: =Fertigung[[#This Row],[Satz]]*Fertigung[[#This Row],[Std]] -> 613.34
A39: D | B39: 4 | C39: 18 | D39: 9 | E39: =Fertigung[[#This Row],[Std]] / Fertigung[[#This Row],[Anzahl]] -> 0.5 | F39: =VLOOKUP(Fertigung[[#This Row],[Produkt]],Kosten[],2) -> 33.7 | G39: =Fertigung[[#This Row],[Satz]]*Fertigung[[#This Row],[Std]] -> 303.3
A40: D | B40: 5 | C40: 3 | D40: 11.3 | E40: =Fertigung[[#This Row],[Std]] / Fertigung[[#This Row],[Anzahl]] -> 3.766666667 | F40: =VLOOKUP(Fertigung[[#This Row],[Produkt]],Kosten[],2) -> 33.7 | G40: =Fertigung[[#This Row],[Satz]]*Fertigung[[#This Row],[Std]] -> 380.81
A41: D | B41: 6 | C41: 11 | D41: 10.5 | E41: =Fertigung[[#This Row],[Std]] / Fertigung[[#This Row],[Anzahl]] -> 0.9545454545 | F41: =VLOOKUP(Fertigung[[#This Row],[Produkt]],Kosten[],2) -> 33.7 | G41: =Fertigung[[#This Row],[Satz]]*Fertigung[[#This Row],[Std]] -> 353.85
A42: E | B42: 1 | C42: 15 | D42: 12.6 | E42: =Fertigung[[#This Row],[Std]] / Fertigung[[#This Row],[Anzahl]] -> 0.84 | F42: =VLOOKUP(Fertigung[[#This Row],[Produkt]],Kosten[],2) -> 72.1 | G42: =Fertigung[[#This Row],[Satz]]*Fertigung[[#This Row],[Std]] -> 908.46
A43: E | B43: 2 | C43: 4 | D43: 3.1 | E43: =Fertigung[[#This Row],[Std]] / Fertigung[[#This Row],[Anzahl]] -> 0.775 | F43: =VLOOKUP(Fertigung[[#This Row],[Produkt]],Kosten[],2) -> 72.1 | G43: =Fertigung[[#This Row],[Satz]]*Fertigung[[#This Row],[Std]] -> 223.51
A44: E | B44: 3 | C44: 15 | D44: 19.2 | E44: =Fertigung[[#This Row],[Std]] / Fertigung[[#This Row],[Anzahl]] -> 1.28 | F44: =VLOOKUP(Fertigung[[#This Row],[Produkt]],Kosten[],2) -> 72.1 | G44: =Fertigung[[#This Row],[Satz]]*Fertigung[[#This Row],[Std]] -> 1384.32
A45: E | B45: 4 | C45: 20 | D45: 6.5 | E45: =Fertigung[[#This Row],[Std]] / Fertigung[[#This Row],[Anzahl]] -> 0.325 | F45: =VLOOKUP(Fertigung[[#This Row],[Produkt]],Kosten[],2) -> 72.1 | G45: =Fertigung[[#This Row],[Satz]]*Fertigung[[#This Row],[Std]] -> 468.65
A46: E | B46: 5 | C46: 1 | D46: 0.8 | E46: =Fertigung[[#This Row],[Std]] / Fertigung[[#This Row],[Anzahl]] -> 0.8 | F46: =VLOOKUP(Fertigung[[#This Row],[Produkt]],Kosten[],2) -> 72.1 | G46: =Fertigung[[#This Row],[Satz]]*Fertigung[[#This Row],[Std]] -> 57.68
A47: E | B47: 6 | C47: 11 | D47: 12.8 | E47: =Fertigung[[#This Row],[Std]] / Fertigung[[#This Row],[Anzahl]] -> 1.163636364 | F47: =VLOOKUP(Fertigung[[#This Row],[Produkt]],Kosten[],2) -> 72.1 | G47: =Fertigung[[#This Row],[Satz]]*Fertigung[[#This Row],[Std]] -> 922.88
A48: E | B48: 7 | C48: 9 | D48: 15.1 | E48: =Fertigung[[#This Row],[Std]] / Fertigung[[#This Row],[Anzahl]] -> 1.677777778 | F48: =VLOOKUP(Fertigung[[#This Row],[Produkt]],Kosten[],2) -> 72.1 | G48: =Fertigung[[#This Row],[Satz]]*Fertigung[[#This Row],[Std]] -> 1088.71
A49: E | B49: 8 | C49: 6 | D49: 9.3 | E49: =Fertigung[[#This Row],[Std]] / Fertigung[[#This Row],[Anzahl]] -> 1.55 | F49: =VLOOKUP(Fertigung[[#This Row],[Produkt]],Kosten[],2) -> 72.1 | G49: =Fertigung[[#This Row],[Satz]]*Fertigung[[#This Row],[Std]] -> 670.53
A50: E | B50: 9 | C50: 12 | D50: 16 | E50: =Fertigung[[#This Row],[Std]] / Fertigung[[#This Row],[Anzahl]] -> 1.333333333 | F50: =VLOOKUP(Fertigung[[#This Row],[Produkt]],Kosten[],2) -> 72.1 | G50: =Fertigung[[#This Row],[Satz]]*Fertigung[[#This Row],[Std]] -> 1153.6
A51: E | B51: 10 | C51: 9 | D51: 6.9 | E51: =Fertigung[[#This Row],[Std]] / Fertigung[[#This Row],[Anzahl]] -> 0.7666666667 | F51: =VLOOKUP(Fertigung[[#This Row],[Produkt]],Kosten[],2) -> 72.1 | G51: =Fertigung[[#This Row],[Satz]]*Fertigung[[#This Row],[Std]] -> 497.49
A52: E | B52: 11 | C52: 6 | D52: 5.7 | E52: =Fertigung[[#This Row],[Std]] / Fertigung[[#This Row],[Anzahl]] -> 0.95 | F52: =VLOOKUP(Fertigung[[#This Row],[Produkt]],Kosten[],2) -> 72.1 | G52: =Fertigung[[#This Row],[Satz]]*Fertigung[[#This Row],[Std]] -> 410.97
A53: =SUBTOTAL(103,Fertigung[Produkt]) -> 51 | B53: =SUBTOTAL(104,Fertigung[Bauteil]) -> 15 | C53: =SUBTOTAL(101,Fertigung[Anzahl]) -> 8.411764706 | D53: =SUBTOTAL(101,Fertigung[Std]) -> 8.233333333 | E53: =SUBTOTAL(101,Fertigung[Schnitt]) -> 2.546041048 | F53: =SUBTOTAL(101,Fertigung[Satz]) -> 55.36078431 | G53: =SUBTOTAL(109,Fertigung[Kosten]) -> 23197.61

Sheet Stundensätze
A1: Produkt | B1: Satz
A2: A | B2: 54.3
A3: B | B3: 60.2
A4: C | B4: 48.9
A5: D | B5: 33.7
A6: E | B6: 72.1
